Workbook

Sheet Sheet1
A1: 序号 | B1: 准考证号 | C1: 姓名 | D1: 岗位 | E1: 笔试成绩 | F1: 打字成绩 | G1: 纵跳摸高 | H1: 体测10*4成绩 | I1: 体测1000/800米成绩 | J1: 体测总成绩 | K1: 合成成绩
A2: 1 | B2: 200010101 | C2: *俊杰 | D2: 20001书记员 | E2: 64.00 | F2: 77.00 | K2: =E2*0.5+F2*0.5 -> 70.50
A3: 2 | B3: 200010102 | C3: *可 | D3: 20001书记员 | E3: 缺考
A4: 3 | B4: 200010103 | C4: *莹莹 | D4: 20001书记员 | E4: 缺考
A5: 4 | B5: 200010104 | C5: *健 | D5: 20001书记员 | E5: 缺考
A6: 5 | B6: 200010105 | C6: *晓芳 | D6: 20001书记员 | E6: 71.00 | F6: 72.00 | K6: =E6*0.5+F6*0.5 -> 71.50
A7: 6 | B7: 200010106 | C7: *楠 | D7: 20001书记员 | E7: 缺考
A8: 7 | B8: 200010107 | C8: *小雨 | D8: 20001书记员 | E8: 缺考
A9: 8 | B9: 200010108 | C9: *莹 | D9: 20001书记员 | E9: 缺考
A10: 9 | B10: 200010109 | C10: *雅萍 | D10: 20001书记员 | E10: 66.00 | F10: 57.00 | K10: =E10*0.5+F10*0.5 -> 61.50
A11: 10 | B11: 200010110 | C11: *晓璐 | D11: 20001书记员 | E11: 缺考
A12: 11 | B12: 200010111 | C12: *可 | D12: 20001书记员 | E12: 67.00 | F12: 48.00 | K12: =E12*0.5+F12*0.5 -> 57.50
A13: 12 | B13: 200010112 | C13: *心乔 | D13: 20001书记员 | E13: 缺考
A14: 13 | B14: 200010113 | C14: *燕 | D14: 20001书记员 | E14: 缺考
A15: 14 | B15: 200010114 | C15: *苏娅 | D15: 20001书记员 | E15: 缺考
A16: 15 | B16: 200010115 | C16: *晓飞 | D16: 20001书记员 | E16: 缺考
A17: 16 | B17: 200010116 | C17: *颖 | D17: 20001书记员 | E17: 73.00 | F17: 36.00 | K17: =E17*0.5+F17*0.5 -> 54.50
A18: 17 | B18: 200010117 | C18: *心雨 | D18: 20001书记员 | E18: 缺考
A19: 18 | B19: 200010118 | C19: *盈银 | D19: 20001书记员 | E19: 缺考
A20: 19 | B20: 200010119 | C20: *文清 | D20: 20001书记员 | E20: 缺考
A21: 20 | B21: 200010120 | C21: *雪敏 | D21: 20001书记员 | E21: 缺考
A22: 21 | B22: 200010121 | C22: *正德 | D22: 20001书记员 | E22: 缺考
A23: 22 | B23: 200010122 | C23: *星宇 | D23: 20001书记员 | E23: 缺考
A24: 23 | B24: 200010123 | C24: *妮 | D24: 20001书记员 | E24: 缺考
A25: 24 | B25: 200010124 | C25: *芳茹 | D25: 20001书记员 | E25: 64.00 | F25: 52.00 | K25: =E25*0.5+F25*0.5 -> 58.00
A26: 25 | B26: 200010125 | C26: *媛 | D26: 20001书记员 | E26: 缺考
A27: 26 | B27: 200010126 | C27: *礼扬 | D27: 20001书记员 | E27: 缺考
A28: 27 | B28: 200010127 | C28: *丹妮 | D28: 20001书记员 | E28: 缺考
A29: 28 | B29: 200010128 | C29: *昊 | D29: 20001书记员 | E29: 缺考
A30: 29 | B30: 200010129 | C30: *玉玉 | D30: 20001书记员 | E30: 缺考
A31: 30 | B31: 200010130 | C31: *菊香 | D31: 20001书记员 | E31: 缺考
A32: 31 | B32: 200010201 | C32: *小正 | D32: 20001书记员 | E32: 缺考
A33: 32 | B33: 200010202 | C33: *瑞婷 | D33: 20001书记员 | E33: 缺考
A34: 33 | B34: 200010203 | C34: *一 | D34: 20001书记员 | E34: 缺考
A35: 34 | B35: 200010204 | C35: *佳佳 | D35: 20001书记员 | E35: 缺考
A36: 35 | B36: 200010205 | C36: *静宜 | D36: 20001书记员 | E36: 73.00 | F36: 65.00 | K36: =E36*0.5+F36*0.5 -> 69.00
A37: 36 | B37: 200010206 | C37: *金雨冰 | D37: 20001书记员 | E37: 缺考
A38: 37 | B38: 200010207 | C38: *莹 | D38: 20001书记员 | E38: 缺考
A39: 38 | B39: 200010208 | C39: *薪宁 | D39: 20001书记员 | E39: 缺考
A40: 39 | B40: 200010209 | C40: *婷秀 | D40: 20001书记员 | E40: 65.00 | F40: 59.00 | K40: =E40*0.5+F40*0.5 -> 62.00
A41: 40 | B41: 200010210 | C41: *宇泽 | D41: 20001书记员 | E41: 缺考
A42: 41 | B42: 200010211 | C42: *淑贤 | D42: 20001书记员 | E42: 缺考
A43: 42 | B43: 200010212 | C43: *秋云 | D43: 20001书记员 | E43: 缺考
A44: 43 | B44: 200010213 | C44: *佳佳 | D44: 20001书记员 | E44: 缺考
A45: 44 | B45: 200010214 | C45: *洁 | D45: 20001书记员 | E45: 缺考
A46: 45 | B46: 200010215 | C46: *纪玲 | D46: 20001书记员 | E46: 缺考
A47: 46 | B47: 200010216 | C47: *仙朋 | D47: 20001书记员 | E47: 75.00 | F47: 44.00 | K47: =E47*0.5+F47*0.5 -> 59.50
A48: 47 | B48: 200010217 | C48: *芮 | D48: 20001书记员 | E48: 66.00 | F48: 53.00 | K48: =E48*0.5+F48*0.5 -> 59.50
A49: 48 | B49: 200010218 | C49: *方伟 | D49: 20001书记员 | E49: 缺考
A50: 49 | B50: 200010219 | C50: *莹 | D50: 20001书记员 | E50: 缺考
A51: 50 | B51: 200010220 | C51: *立萍 | D51: 20001书记员 | E51: 缺考
A52: 51 | B52: 200010221 | C52: *银龙 | D52: 20001书记员 | E52: 缺考
A53: 52 | B53: 200010222 | C53: *冀君 | D53: 20001书记员 | E53: 缺考
A54: 53 | B54: 200010223 | C54: *苗琪 | D54: 20001书记员 | E54: 缺考
A55: 54 | B55: 200010224 | C55: *金城 | D55: 20001书记员 | E55: 60.00 | F55: 63.00 | K55: =E55*0.5+F55*0.5 -> 61.50
A56: 55 | B56: 200010225 | C56: *雪梅 | D56: 20001书记员 | E56: 56.00 | F56: 62.00 | K56: =E56*0.5+F56*0.5 -> 59.00
A57: 56 | B57: 200010226 | C57: *一帆 | D57: 20001书记员 | E57: 缺考
A58: 57 | B58: 200010227 | C58: *云鹏 | D58: 20001书记员 | E58: 71.00 | F58: 66.00 | K58: =E58*0.5+F58*0.5 -> 68.50
A59: 58 | B59: 200010228 | C59: *岸松 | D59: 20001书记员 | E59: 缺考
A60: 59 | B60: 200010229 | C60: *如霞 | D60: 20001书记员 | E60: 缺考
A61: 60 | B61: 200010230 | C61: *秋叶 | D61: 20001书记员 | E61: 缺考
A62: 61 | B62: 200010301 | C62: *小雨 | D62: 20001书记员 | E62: 缺考
A63: 62 | B63: 200010302 | C63: *孝天 | D63: 20001书记员 | E63: 65.00 | F63: 48.00 | K63: =E63*0.5+F63*0.5 -> 56.50
A64: 63 | B64: 200010303 | C64: *仁杰 | D64: 20001书记员 | E64: 缺考
A65: 64 | B65: 200010304 | C65: *土辉 | D65: 20001书记员 | E65: 缺考
A66: 65 | B66: 200010305 | C66: *文杰 | D66: 20001书记员 | E66: 缺考
A67: 66 | B67: 200010306 | C67: *霞飞 | D67: 20001书记员 | E67: 70.00 | F67: 39.00 | K67: =E67*0.5+F67*0.5 -> 54.50
A68: 67 | B68: 200010307 | C68: *保苹 | D68: 20001书记员 | E68: 缺考
A69: 68 | B69: 200010308 | C69: *杰 | D69: 20001书记员 | E69: 缺考
A70: 69 | B70: 200010309 | C70: *贵 | D70: 20001书记员 | E70: 缺考
A71: 70 | B71: 200010310 | C71: *莹莹 | D71: 20001书记员 | E71: 缺考
A72: 71 | B72: 200010311 | C72: *玲玲 | D72: 20001书记员 | E72: 缺考
A73: 72 | B73: 200010312 | C73: *子珍 | D73: 20001书记员 | E73: 缺考
A74: 73 | B74: 200010313 | C74: *娜 | D74: 20001书记员 | E74: 67.00 | F74: 57.00 | K74: =E74*0.5+F74*0.5 -> 62.00
A75: 74 | B75: 200010314 | C75: *婷婷 | D75: 20001书记员 | E75: 缺考
A76: 75 | B76: 200010315 | C76: *中悦 | D76: 20001书记员 | E76: 缺考
A77: 76 | B77: 200010316 | C77: *雨薇 | D77: 20001书记员 | E77: 65.00 | F77: 73.00 | K77: =E77*0.5+F77*0.5 -> 69.00
A78: 77 | B78: 200010317 | C78: *靖 | D78: 20001书记员 | E78: 缺考
A79: 78 | B79: 200010318 | C79: *霞 | D79: 20001书记员 | E79: 缺考
A80: 79 | B80: 200010319 | C80: *静雯 | D80: 20001书记员 | E80: 61.00 | F80: 41.00 | K80: =E80*0.5+F80*0.5 -> 51.00
A81: 80 | B81: 200010320 | C81: *帆 | D81: 20001书记员 | E81: 缺考
A82: 81 | B82: 200010321 | C82: *园 | D82: 20001书记员 | E82: 缺考
A83: 82 | B83: 200010322 | C83: *梦雪 | D83: 20001书记员 | E83: 缺考
A84: 83 | B84: 200010323 | C84: *晓远 | D84: 20001书记员 | E84: 29.00 | F84: 54.00 | K84: =E84*0.5+F84*0.5 -> 41.50
A85: 84 | B85: 200010324 | C85: *维斌 | D85: 20001书记员 | E85: 63.00 | F85: 47.00 | K85: =E85*0.5+F85*0.5 -> 55.00
A86: 85 | B86: 200010325 | C86: *婷婷 | D86: 20001书记员 | E86: 缺考
A87: 86 | B87: 200010326 | C87: *晨红 | D87: 20001书记员 | E87: 缺考
A88: 87 | B88: 200010327 | C88: *凌玉 | D88: 20001书记员 | E88: 缺考
A89: 88 | B89: 200010328 | C89: *慧敏 | D89: 20001书记员 | E89: 缺考
A90: 89 | B90: 200010329 | C90: *守炎 | D90: 20001书记员 | E90: 缺考
A91: 90 | B91: 200010330 | C91: *丽敏 | D91: 20001书记员 | E91: 68.00 | F91: 49.00 | K91: =E91*0.5+F91*0.5 -> 58.50
A92: 91 | B92: 200010401 | C92: *廷诺 | D92: 20001书记员 | E92: 缺考
A93: 92 | B93: 200010402 | C93: *波 | D93: 20001书记员 | E93: 缺考
A94: 93 | B94: 200010403 | C94: *雨声 | D94: 20001书记员 | E94: 65.00 | F94: 45.00 | K94: =E94*0.5+F94*0.5 -> 55.00
A95: 94 | B95: 200010404 | C95: *彤 | D95: 20001书记员 | E95: 62.00 | F95: 50.00 | K95: =E95*0.5+F95*0.5 -> 56.00
A96: 95 | B96: 200010405 | C96: *文静 | D96: 20001书记员 | E96: 67.00 | F96: 80.00 | K96: =E96*0.5+F96*0.5 -> 73.50
A97: 96 | B97: 200010406 | C97: *明明 | D97: 20002法警 | E97: 缺考
A98: 97 | B98: 200010407 | C98: *旭 | D98: 20002法警 | E98: 缺考
A99: 98 | B99: 200010408 | C99: *贵阳 | D99: 20002法警 | E99: 62.00 | G99: 合格 | H99: 65.00 | I99: 0.00 | J99: =(H99+I99)*0.5 -> 32.50 | K99: =E99*0.5+J99*0.5 -> 47.25
A100: 99 | B100: 200010409 | C100: *志成 | D100: 20002法警 | E100: 缺考
A101: 100 | B101: 200010410 | C101: *舟 | D101: 20002法警 | E101: 缺考
A102: 101 | B102: 200010411 | C102: *守钰 | D102: 20002法警 | E102: 缺考
A103: 102 | B103: 200010412 | C103: *振 | D103: 20002法警 | E103: 缺考
A104: 103 | B104: 200010413 | C104: *敏 | D104: 20002法警 | E104: 缺考
A105: 104 | B105: 200010414 | C105: *强 | D105: 20002法警 | E105: 缺考
A106: 105 | B106: 200010415 | C106: *振 | D106: 20002法警 | E106: 68.00 | G106: 合格 | H106: 55.00 | I106: 0.00 | J106: =(H106+I106)*0.5 -> 27.50 | K106: =E106*0.5+J106*0.5 -> 47.75
A107: 106 | B107: 200010416 | C107: *明鹏 | D107: 20002法警 | E107: 缺考
A108: 107 | B108: 200010417 | C108: *东升 | D108: 20002法警 | E108: 65.00 | G108: 合格 | H108: 60.00 | I108: 45.00 | J108: =(H108+I108)*0.5 -> 52.50 | K108: =E108*0.5+J108*0.5 -> 58.75
A109: 108 | B109: 200010418 | C109: *品 | D109: 20002法警 | E109: 缺考
A110: 109 | B110: 200010419 | C110: *英俊 | D110: 20002法警 | E110: 70.00 | G110: 合格 | H110: 75.00 | I110: 35.00 | J110: =(H110+I110)*0.5 -> 55.00 | K110: =E110*0.5+J110*0.5 -> 62.50
A111: 110 | B111: 200010420 | C111: *少东 | D111: 20002法警 | E111: 68.00 | G111: 合格 | H111: 65.00 | I111: 75.00 | J111: =(H111+I111)*0.5 -> 70.00 | K111: =E111*0.5+J111*0.5 -> 69.00
A112: 111 | B112: 200010421 | C112: *世明 | D112: 20002法警 | E112: 61.00 | G112: 合格 | H112: 70.00 | I112: 70.00 | J112: =(H112+I112)*0.5 -> 70.00 | K112: =E112*0.5+J112*0.5 -> 65.50
A113: 112 | B113: 200010422 | C113: *志远 | D113: 20002法警 | E113: 60.00 | G113: 合格 | H113: 60.00 | I113: 0.00 | J113: =(H113+I113)*0.5 -> 30.00 | K113: =E113*0.5+J113*0.5 -> 45.00
A114: 113 | B114: 200010423 | C114: *家星 | D114: 20002法警 | E114: 缺考
A115: 114 | B115: 200010424 | C115: *荣庆 | D115: 20002法警 | E115: 缺考
A116: 115 | B116: 200010425 | C116: *宗保 | D116: 20002法警 | E116: 缺考
A117: 116 | B117: 200010426 | C117: *国禹 | D117: 20002法警 | E117: 66.00 | G117: 合格 | H117: 65.00 | I117: 45.00 | J117: =(H117+I117)*0.5 -> 55.00 | K117: =E117*0.5+J117*0.5 -> 60.50
A118: 117 | B118: 200010427 | C118: *豪 | D118: 20002法警 | E118: 缺考
A119: 118 | B119: 200010428 | C119: *涛 | D119: 20002法警 | E119: 缺考
A120: 119 | B120: 200010429 | C120: *奇 | D120: 20002法警 | E120: 缺考
A121: 120 | B121: 200010430 | C121: *海波 | D121: 20002法警 | E121: 缺考
A122: 121 | B122: 200010501 | C122: *祥 | D122: 20002法警 | E122: 68.00 | G122: 合格 | H122: 65.00 | I122: 45.00 | J122: =(H122+I122)*0.5 -> 55.00 | K122: =E122*0.5+J122*0.5 -> 61.50
A123: 122 | B123: 200010502 | C123: *振宇 | D123: 20002法警 | E123: 71.00 | G123: 合格 | H123: 60.00 | I123: 70.00 | J123: =(H123+I123)*0.5 -> 65.00 | K123: =E123*0.5+J123*0.5 -> 68.00
A124: 123 | B124: 200010503 | C124: *金文 | D124: 20002法警 | E124: 缺考
A125: 124 | B125: 200010504 | C125: *梦东 | D125: 20002法警 | E125: 53.00 | G125: 合格 | H125: 55.00 | I125: 0.00 | J125: =(H125+I125)*0.5 -> 27.50 | K125: =E125*0.5+J125*0.5 -> 40.25
A126: 125 | B126: 200010505 | C126: *兴宇 | D126: 20002法警 | E126: 缺考
A127: 126 | B127: 200010506 | C127: *子培 | D127: 20002法警 | E127: 缺考
A128: 127 | B128: 200010507 | C128: *祚晶 | D128: 20002法警 | E128: 缺考
A129: 128 | B129: 200010508 | C129: *俊杰 | D129: 20002法警 | E129: 缺考
A130: 129 | B130: 200010509 | C130: *炳晨 | D130: 20002法警 | E130: 缺考
A131: 130 | B131: 200010510 | C131: *成浩 | D131: 20002法警 | E131: 缺考
A132: 131 | B132: 200010511 | C132: *杰 | D132: 20002法警 | E132: 缺考
A133: 132 | B133: 200010512 | C133: *忠 | D133: 20002法警 | E133: 缺考
A134: 133 | B134: 200010513 | C134: *星 | D134: 20002法警 | E134: 缺考
A135: 134 | B135: 200010514 | C135: *宇昂 | D135: 20002法警 | E135: 缺考
A136: 135 | B136: 200010515 | C136: *刘武 | D136: 20002法警 | E136: 缺考
A137: 136 | B137: 200010516 | C137: *哲翰 | D137: 20002法警 | E137: 缺考
A138: 137 | B138: 200010517 | C138: *景祺 | D138: 20002法警 | E138: 缺考
A139: 138 | B139: 200010518 | C139: *志伟 | D139: 20002法警 | E139: 缺考
A140: 139 | B140: 200010519 | C140: *伟 | D140: 20002法警 | E140: 58.00 | G140: 合格 | H140: 55.00 | I140: 35.00 | J140: =(H140+I140)*0.5 -> 45.00 | K140: =E140*0.5+J140*0.5 -> 51.50
A141: 140 | B141: 200010520 | C141: *昆 | D141: 20002法警 | E141: 缺考
A142: 141 | B142: 200010521 | C142: *涛 | D142: 20002法警 | E142: 缺考
A143: 142 | B143: 200010522 | C143: *欢 | D143: 20002法警 | E143: 78.00 | G143: 合格 | H143: 75.00 | I143: 0.00 | J143: =(H143+I143)*0.5 -> 37.50 | K143: =E143*0.5+J143*0.5 -> 57.75
A144: 143 | B144: 200010523 | C144: *宇欣 | D144: 20002法警 | E144: 缺考
A145: 144 | B145: 200010524 | C145: *萧萧 | D145: 20002法警 | E145: 缺考
A146: 145 | B146: 200010525 | C146: *兵 | D146: 20002法警 | E146: 67.00 | G146: 合格 | H146: 70.00 | I146: 95.00 | J146: =(H146+I146)*0.5 -> 82.50 | K146: =E146*0.5+J146*0.5 -> 74.75
A147: 146 | B147: 200010526 | C147: *鹏 | D147: 20002法警 | E147: 54.00 | G147: 合格 | H147: 90.00 | I147: 65.00 | J147: =(H147+I147)*0.5 -> 77.50 | K147: =E147*0.5+J147*0.5 -> 65.75
A148: 147 | B148: 200010527 | C148: *昊 | D148: 20002法警 | E148: 缺考
A149: 148 | B149: 200010528 | C149: *超飞 | D149: 20002法警 | E149: 69.00 | G149: 合格 | H149: 60.00 | I149: 75.00 | J149: =(H149+I149)*0.5 -> 67.50 | K149: =E149*0.5+J149*0.5 -> 68.25
A150: 149 | B150: 200010529 | C150: *小虎 | D150: 20002法警 | E150: 缺考
A151: 150 | B151: 200010530 | C151: *驰 | D151: 20002法警 | E151: 73.00 | G151: 合格 | H151: 70.00 | I151: 60.00 | J151: =(H151+I151)*0.5 -> 65.00 | K151: =E151*0.5+J151*0.5 -> 69.00
A152: 151 | B152: 200010601 | C152: *宝文 | D152: 20002法警 | E152: 71.00 | G152: 合格 | H152: 60.00 | I152: 70.00 | J152: =(H152+I152)*0.5 -> 65.00 | K152: =E152*0.5+J152*0.5 -> 68.00
A153: 152 | B153: 200010602 | C153: *亚强 | D153: 20002法警 | E153: 58.00 | G153: 合格 | H153: 80.00 | I153: 40.00 | J153: =(H153+I153)*0.5 -> 60.00 | K153: =E153*0.5+J153*0.5 -> 59.00
A154: 153 | B154: 200010603 | C154: *嘉成 | D154: 20002法警 | E154: 缺考
A155: 154 | B155: 200010604 | C155: *安威 | D155: 20002法警 | E155: 67.00 | G155: 合格 | H155: 80.00 | I155: 50.00 | J155: =(H155+I155)*0.5 -> 65.00 | K155: =E155*0.5+J155*0.5 -> 66.00
A156: 155 | B156: 200010605 | C156: *岩 | D156: 20002法警 | E156: 缺考
A157: 156 | B157: 200010606 | C157: *凯 | D157: 20002法警 | E157: 79.00 | G157: 合格 | H157: 85.00 | I157: 80.00 | J157: =(H157+I157)*0.5 -> 82.50 | K157: =E157*0.5+J157*0.5 -> 80.75
A158: 157 | B158: 200010607 | C158: *冠中 | D158: 20002法警 | E158: 69.00 | G158: 合格 | H158: 40.00 | I158: 0.00 | J158: =(H158+I158)*0.5 -> 20.00 | K158: =E158*0.5+J158*0.5 -> 44.50
A159: 158 | B159: 200010608 | C159: *子龙 | D159: 20002法警 | E159: 49.00 | G159: 合格 | H159: 80.00 | I159: 100.00 | J159: =(H159+I159)*0.5 -> 90.00 | K159: =E159*0.5+J159*0.5 -> 69.50
A160: 159 | B160: 200010609 | C160: *波 | D160: 20002法警 | E160: 缺考
A161: 160 | B161: 200010610 | C161: *凤至 | D161: 20003法警 | E161: 缺考
A162: 161 | B162: 200010611 | C162: *雪洁 | D162: 20003法警 | E162: 68.00 | G162: 合格 | H162: 55.00 | I162: 0.00 | J162: =(H162+I162)*0.5 -> 27.50 | K162: =E162*0.5+J162*0.5 -> 47.75
A163: 162 | B163: 200010612 | C163: *陆婧 | D163: 20003法警 | E163: 61.00 | G163: 合格 | H163: 85.00 | I163: 95.00 | J163: =(H163+I163)*0.5 -> 90.00 | K163: =E163*0.5+J163*0.5 -> 75.50
A164: 163 | B164: 200010613 | C164: *梦茹 | D164: 20003法警 | E164: 缺考
A165: 164 | B165: 200010614 | C165: *旭君 | D165: 20003法警 | E165: 缺考
A166: 165 | B166: 200010615 | C166: *婉玲 | D166: 20003法警 | E166: 缺考
A167: 166 | B167: 200010616 | C167: *敏 | D167: 20003法警 | E167: 缺考
A168: 167 | B168: 200010617 | C168: *丁玲 | D168: 20003法警 | E168: 缺考
A169: 168 | B169: 200010618 | C169: *田园 | D169: 20003法警 | E169: 缺考
A170: 169 | B170: 200010619 | C170: *施洋 | D170: 20003法警 | E170: 68.00 | G170: 合格 | H170: 0.00 | I170: 40.00 | J170: =(H170+I170)*0.5 -> 20.00 | K170: =E170*0.5+J170*0.5 -> 44.00
A171: 170 | B171: 200010620 | C171: *敏 | D171: 20003法警 | E171: 70.00 | G171: 合格 | H171: 55.00 | I171: 0.00 | J171: =(H171+I171)*0.5 -> 27.50 | K171: =E171*0.5+J171*0.5 -> 48.75
A172: 171 | B172: 200010621 | C172: *红 | D172: 20003法警 | E172: 缺考
A173: 172 | B173: 200010622 | C173: *雪芹 | D173: 20003法警 | E173: 52.00 | G173: 合格 | H173: 缺考 | I173: 0.00 | J173: 0.00 | K173: =E173*0.5+J173*0.5 -> 26.00
A174: 173 | B174: 200010623 | C174: *君军 | D174: 20003法警 | E174: 缺考
A175: 174 | B175: 200010624 | C175: *逸睿 | D175: 20003法警 | E175: 缺考
A176: 175 | B176: 200010625 | C176: *秀文 | D176: 20003法警 | E176: 缺考
A177: 176 | B177: 200010626 | C177: *玉培 | D177: 20003法警 | E177: 62.00 | G177: 合格 | H177: 70.00 | I177: 0.00 | J177: =(H177+I177)*0.5 -> 35.00 | K177: =E177*0.5+J177*0.5 -> 48.50
A178: 177 | B178: 200010627 | C178: *紫薇 | D178: 20003法警 | E178: 64.00 | G178: 合格 | H178: 60.00 | I178: 0.00 | J178: =(H178+I178)*0.5 -> 30.00 | K178: =E178*0.5+J178*0.5 -> 47.00
A179: 178 | B179: 200010628 | C179: *文艺 | D179: 20003法警 | E179: 缺考
A180: 179 | B180: 200010629 | C180: *慧慧 | D180: 20003法警 | E180: 缺考
A181: 180 | B181: 200010630 | C181: *婕 | D181: 20003法警 | E181: 缺考
A182: 181 | B182: 200010701 | C182: *雪洁 | D182: 20003法警 | E182: 66.00 | G182: 合格 | H182: 缺考 | I182: 0.00 | J182: 0.00 | K182: =E182*0.5+J182*0.5 -> 33.00
A183: 182 | B183: 200010702 | C183: *佳琪 | D183: 20003法警 | E183: 缺考
A184: 183 | B184: 200010703 | C184: *杨艳 | D184: 20003法警 | E184: 缺考
A185: 184 | B185: 200010704 | C185: *梦君 | D185: 20003法警 | E185: 缺考
A186: 185 | B186: 200010705 | C186: *雯 | D186: 20003法警 | E186: 缺考
A187: 186 | B187: 200010706 | C187: *芳芳 | D187: 20003法警 | E187: 70.00 | G187: 合格 | H187: 70.00 | I187: 80.00 | J187: =(H187+I187)*0.5 -> 75.00 | K187: =E187*0.5+J187*0.5 -> 72.50
A188: 187 | B188: 200010707 | C188: *丁凡 | D188: 20003法警 | E188: 缺考
A189: 188 | B189: 200010708 | C189: *婧妍 | D189: 20003法警 | E189: 缺考
A190: 189 | B190: 200010709 | C190: *梦莲 | D190: 20003法警 | E190: 59.00 | G190: 合格 | H190: 75.00 | I190: 70.00 | J190: =(H190+I190)*0.5 -> 72.50 | K190: =E190*0.5+J190*0.5 -> 65.75
